bitfinex/quotes_SOLUSD_20250207
["timestamp","ask_amount","ask_price","bid_price","bid_amount"]
[1738894726249,0.28098,194.27,194.25,19.5]
[1738894728350,0.28098,194.27,194.24,5.1482]
[1738894729122,0.28098,194.27,194.25,20.0]
[1738894729544,0.15549,194.27,194.25,20.0]
[1738894729748,0.15549,194.27,194.25,25.1478]
[1738894730251,0.15549,194.27,194.23,35.92203641]
[1738894731042,0.15549,194.27,194.25,20.0]
[1738894731743,0.15549,194.27,194.24,5.1482]
[1738894733028,0.15549,194.27,194.25,20.0]
[1738894735746,0.28098,194.27,194.26,20.0]
[1738894737558,0.03,194.27,194.26,20.0]
[1738894740176,0.03,194.27,194.23,15.92203641]
[1738894740331,0.03,194.27,194.26,15.92203641]
[1738894741537,15.73301641,194.35,194.27,20.0]
[1738894741741,15.92203641,194.3,194.23,21.07053641]
[1738894742056,15.92203641,194.31,194.23,21.07053641]
[1738894742260,15.92203641,194.31,194.25,0.063]
[1738894742437,0.03,194.27,194.25,0.063]
[1738894744246,16.04752641,194.26,194.25,0.063]
[1738894744451,0.12549,194.26,194.25,0.063]
[1738894744767,0.03,194.27,194.25,0.063]
[1738894746247,0.03,194.27,194.26,20.0]
[1738894746448,0.03,194.27,194.26,29.33388494]
[1738894746740,1.6351,194.36,194.29,20.0]
[1738894746940,0.25098,194.35,194.3,15.92203641]
[1738894748068,1.6017,194.43,194.37,20.0]
[1738894748238,1.6017,194.48,194.42,20.0]
[1738894748438,1.6017,194.48,194.43,15.92203641]
[1738894748641,1.6017,194.48,194.44,15.92203641]
[1738894748857,1.6017,194.48,194.45,15.92203641]
[1738894749160,32.22796603,194.51,194.45,15.92203641]
[1738894749361,13.07834992,194.5,194.49,20.0]
[1738894749548,13.07834992,194.5,194.49,35.92203641]
[1738894750064,13.07834992,194.5,194.49,41.06363641]
[1738894750436,13.07834992,194.5,194.47,15.92203641]
[1738894750637,13.07834992,194.5,194.46,25.41408373]
[1738894751447,0.25098,194.49,194.44,25.41408373]
[1738894751659,0.25098,194.49,194.42,30.55758373]
[1738894751855,25.41408373,194.48,194.41,25.41408373]
[1738894752070,0.25098,194.47,194.43,20.0]
[1738894752253,25.66506373,194.47,194.4,38.46506683]
[1738894752675,0.25098,194.48,194.41,25.41408373]
[1738894753074,25.41408373,194.49,194.41,33.32126683]
[1738894753379,25.41408373,194.48,194.41,33.32126683]
[1738894753557,25.41408373,194.45,194.41,7.9071831]
[1738894753759,25.41408373,194.45,194.37,38.46596683]
[1738894754277,55.41408373,194.45,194.38,25.41408373]
[1738894754455,25.41408373,194.44,194.37,33.32126683]
[1738894754658,55.41408373,194.45,194.37,33.32126683]
[1738894754860,55.41408373,194.45,194.38,25.41408373]
[1738894754861,25.41408373,194.45,194.38,25.41408373]
[1738894755059,25.41408373,194.46,194.38,25.41408373]
[1738894755272,0.25098,194.45,194.38,25.41408373]
[1738894755458,0.25098,194.45,194.39,25.41408373]
[1738894755676,0.25098,194.45,194.4,25.41408373]
[1738894755868,0.03,194.47,194.44,25.41408373]
[1738894756066,0.03,194.47,194.46,25.41408373]
[1738894757371,0.03,194.47,194.46,30.55648373]
[1738894758879,0.03,194.47,194.45,25.41408373]
[1738894759880,30.0,194.63,194.47,1.0]
[1738894760183,12.75850729,194.64,194.57,25.41408373]
[1738894760358,0.25098,194.63,194.58,25.41408373]
[1738894760557,12.75850729,194.64,194.58,25.41408373]
[1738894760760,12.75850729,194.64,194.6,25.41408373]
[1738894760980,12.75850729,194.64,194.59,25.41408373]
[1738894761670,12.75850729,194.64,194.59,30.55298373]
[1738894762280,12.25850729,194.64,194.59,30.55298373]
[1738894762666,12.25850729,194.64,194.62,45.41408373]
[1738894762866,12.25850729,194.64,194.63,25.41408373]
[1738894763469,12.25850729,194.64,194.62,25.41408373]
[1738894763787,12.25850729,194.64,194.61,30.55238373]
[1738894763981,12.25850729,194.64,194.59,25.41408373]
[1738894764159,12.25850729,194.64,194.61,25.41408373]
[1738894764365,12.25850729,194.64,194.63,25.41408373]
[1738894765265,12.25850729,194.64,194.63,25.27498373]
[1738894765466,12.25850729,194.64,194.63,25.05748373]
[1738894765668,12.25850729,194.64,194.63,30.19538373]
[1738894766672,12.28850729,194.64,194.63,30.19538373]
[1738894770277,0.03,194.67,194.66,20.0]
[1738894770593,1.5834,194.76,194.66,20.0]
[1738894770594,1.5834,194.76,194.66,45.41408373]
[1738894770898,1.5834,194.76,194.73,25.41408373]
[1738894771098,1.5834,194.76,194.72,25.41408373]
[1738894771302,1.5834,194.76,194.74,25.41408373]
[1738894771476,0.25098,194.78,194.74,25.41408373]
[1738894771670,0.25098,194.78,194.73,25.41408373]
[1738894771982,6.0801,194.79,194.75,25.41408373]
[1738894772189,6.0801,194.79,194.74,25.41408373]
[1738894772390,6.0801,194.83,194.78,25.41408373]
[1738894772583,6.0801,194.83,194.79,25.41408373]
[1738894773191,6.0801,194.83,194.8,25.41408373]
[1738894773583,6.0801,194.83,194.78,25.41408373]
[1738894773899,25.66506373,194.82,194.75,25.41408373]
[1738894775407,0.25098,194.79,194.73,25.41408373]
[1738894775582,0.25098,194.79,194.72,25.41408373]
[1738894775785,0.25098,194.79,194.74,25.41408373]
[1738894776084,0.25098,194.81,194.75,25.41408373]
[1738894776288,0.25098,194.81,194.77,25.41408373]
[1738894776689,6.0801,194.83,194.77,25.41408373]
[1738894776876,6.0801,194.83,194.78,25.41408373]
[1738894777083,6.0801,194.83,194.79,25.41408373]
[1738894777289,6.0801,194.83,194.79,30.54758373]
[1738894777603,6.0801,194.83,194.79,5.1335]
[1738894777902,6.0801,194.83,194.77,50.54808373]
[1738894778109,6.0801,194.83,194.77,45.41408373]
[1738894778405,31.49418373,194.83,194.77,20.0]
[1738894779104,31.49418373,194.83,194.74,25.41408373]
[1738894779105,25.41408373,194.81,194.74,25.41408373]
[1738894779480,1.0,194.87,194.74,25.41408373]
[1738894779481,1.6199,194.93,194.82,1.0]
[1738894779801,1.6199,194.93,194.92,20.0]
[1738894780004,1.5101,194.99,194.92,20.0]
[1738894780386,1.5101,194.99,194.85,1.76949776]
[1738894780577,1.5101,194.99,194.89,20.0]
[1738894780996,6.0134,195.0,194.96,25.41408373]
[1738894781304,6.0134,195.0,194.97,25.41408373]
[1738894781604,31.42748373,195.0,194.93,25.41408373]
[1738894781790,25.41408373,194.98,194.91,25.41408373]
[1738894781994,55.66506373,194.99,194.91,25.41408373]
[1738894782190,0.12549,194.96,194.89,25.41408373]
[1738894782389,0.25098,194.95,194.88,25.41408373]
[1738894782592,0.25098,194.95,194.89,25.41408373]
[1738894783209,25.41408373,194.99,194.92,25.41408373]
[1738894783387,6.0134,195.0,194.93,25.41408373]
[1738894783583,0.25098,194.99,194.94,25.41408373]
[1738894784084,6.0134,195.0,194.95,25.41408373]
[1738894784400,6.0134,195.0,194.96,25.41408373]
[1738894784606,0.03,195.02,194.98,25.41408373]
[1738894784776,0.03,195.02,194.96,25.41408373]
[1738894784976,0.03,195.02,194.9,26.18335126]
[1738894784977,25.69506373,195.02,194.95,25.41408373]
[1738894785395,0.25098,194.99,194.93,25.41408373]
[1738894785792,0.03,195.02,194.96,25.41408373]
[1738894785993,0.03,195.02,194.97,25.41408373]
[1738894786206,0.03,195.02,194.98,25.41408373]
[1738894786609,0.03,195.02,195.0,25.41408373]
[1738894786914,0.03,195.02,195.01,25.41408373]
[1738894787789,0.03,195.02,194.98,5.1285]
[1738894787990,0.03,195.02,194.97,30.54298373]
[1738894788217,0.03,195.02,194.98,25.41408373]
[1738894788386,0.03,195.02,194.99,25.41408373]
[1738894788903,0.03,195.02,195.0,25.41408373]
[1738894789113,0.03,195.02,195.01,25.41408373]
[1738894789750,0.03,195.02,195.01,30.54198373]
[1738894791725,0.03,195.02,194.96,25.41408373]
[1738894791929,0.03,195.02,194.97,25.41408373]
[1738894792108,25.41408373,195.04,194.97,25.41408373]
[1738894792314,25.41408373,195.05,194.97,25.41408373]
[1738894793096,25.41408373,195.04,194.98,5.1287]
[1738894793292,25.41408373,195.05,194.98,5.1287]
[1738894793900,0.227,195.17,195.07,20.0]
[1738894794124,0.227,195.17,195.12,25.41408373]
[1738894794422,0.227,195.17,195.1,25.41408373]
[1738894794626,55.41408373,195.15,195.06,25.41408373]
[1738894794827,25.41408373,195.15,195.06,25.41408373]
[1738894795006,25.64108373,195.17,195.08,25.41408373]
[1738894795204,25.41408373,195.15,195.08,25.41408373]
[1738894795419,25.41408373,195.15,195.06,25.41408373]
[1738894795734,0.12549,195.14,195.06,25.41408373]
[1738894795932,0.12549,195.1,195.02,30.54168373]
[1738894796118,25.41408373,195.07,194.98,25.41408373]
[1738894796308,0.25098,195.08,194.94,30.54378373]
[1738894796309,25.41408373,195.01,194.94,30.54378373]
[1738894796725,25.41408373,195.03,194.96,25.41408373]
[1738894796919,25.41408373,195.05,194.96,30.54308373]
[1738894797131,25.41408373,195.05,194.98,25.41408373]
[1738894797514,25.41408373,195.05,194.96,5.129]
[1738894797515,25.41408373,195.07,195.0,25.41408373]
[1738894797739,8.0023,195.13,195.02,25.41408373]
[1738894797740,25.41408373,195.09,195.02,25.41408373]
[1738894798413,25.41408373,195.07,194.98,25.41408373]
[1738894798724,25.41408373,195.05,194.98,25.41408373]
[1738894799708,25.41408373,195.05,194.98,30.54268373]
[1738894800320,27.05828373,195.02,194.95,5.1294]
[1738894800637,27.05828373,195.02,194.94,25.41408373]
[1738894801017,1.6442,195.02,194.97,25.41408373]
[1738894801347,25.41408373,195.01,194.94,25.41408373]
[1738894801516,25.41408373,195.0,194.93,25.47708373]
[1738894801716,1.6442,195.02,194.95,25.41408373]
[1738894802045,25.41408373,195.01,194.94,25.41408373]
[1738894802246,1.6442,195.02,194.96,25.41408373]
[1738894802443,1.6442,195.02,194.95,25.41408373]
[1738894802733,27.05828373,195.02,194.95,25.41408373]
[1738894803312,27.05828373,195.02,194.95,30.54358373]
[1738894804013,27.05828373,195.02,194.96,25.41408373]
[1738894804014,1.6442,195.02,194.96,25.41408373]
[1738894804215,1.6442,195.02,194.98,25.41408373]
[1738894804425,1.6742,195.02,194.99,25.41408373]
[1738894804620,0.03,195.02,194.99,25.41408373]
[1738894804939,0.03,195.02,195.01,25.41408373]
[1738894805731,0.03,195.02,195.0,25.41408373]
[1738894806152,0.03,195.02,194.98,25.41408373]
[1738894806327,0.03,195.02,194.97,5.1289]
[1738894806328,0.03,195.02,194.97,30.54298373]
[1738894806723,0.03,195.02,194.95,25.41408373]
[1738894806958,25.41408373,195.0,194.93,5.1928]
[1738894807127,25.41408373,194.99,194.93,5.1928]
[1738894807324,25.41408373,195.0,194.93,5.1928]
[1738894807657,4.38318,195.02,194.93,0.063]
[1738894807658,25.41408373,194.99,194.93,0.063]
[1738894808715,25.41408373,195.01,194.94,25.41408373]
[1738894809216,4.38318,195.02,194.93,0.063]
[1738894809217,25.41408373,194.99,194.93,0.063]
[1738894809544,25.41408373,194.94,194.93,0.063]
[1738894810443,25.66506373,194.94,194.93,0.063]
[1738894810643,55.66506373,194.94,194.93,0.063]
[1738894810847,59.76886373,194.94,194.93,0.063]
[1738894811546,0.25098,194.93,194.83,25.41408373]
[1738894811844,0.25098,194.93,194.81,30.54718373]
[1738894811845,25.41408373,194.89,194.81,30.54718373]
[1738894812432,25.41408373,194.88,194.81,30.54718373]
[1738894812767,25.41408373,194.88,194.81,25.41408373]
[1738894813262,25.41408373,194.9,194.83,25.41408373]
[1738894813455,25.41408373,194.94,194.87,25.41408373]
[1738894813757,55.41408373,194.94,194.87,25.41408373]
[1738894813934,25.41408373,194.93,194.85,25.41408373]
[1738894814537,25.41408373,194.92,194.85,25.41408373]
[1738894814742,25.41408373,194.91,194.84,30.54638373]
[1738894815143,25.41408373,194.92,194.85,25.41408373]
[1738894815360,25.41408373,194.93,194.85,25.41408373]
[1738894815561,25.41408373,194.95,194.87,25.41408373]
[1738894815786,25.41408373,194.96,194.89,25.41408373]
[1738894815969,27.07548373,194.97,194.9,25.41408373]
[1738894816150,1.6614,194.97,194.9,25.41408373]
[1738894816959,27.07548373,194.97,194.9,25.41408373]
[1738894817157,25.41408373,194.96,194.88,25.41408373]
[1738894817383,1.6614,194.97,194.9,25.41408373]
[1738894817669,1.6614,194.97,194.91,25.41408373]
[1738894817875,27.07548373,194.97,194.89,25.41408373]
[1738894818082,25.41408373,194.96,194.89,25.41408373]
[1738894818240,25.41408373,194.91,194.85,5.1321]
[1738894818445,25.41408373,194.92,194.84,25.41408373]
[1738894818664,25.41408373,194.91,194.83,25.41408373]
[1738894818976,25.41408373,194.91,194.82,5.1329]
[1738894818977,25.41408373,194.91,194.84,30.54638373]
[1738894819173,4.1041,194.93,194.84,30.54638373]
[1738894819174,25.41408373,194.92,194.84,30.54638373]
[1738894819386,25.41408373,194.92,194.85,25.41408373]
[1738894821062,25.41408373,194.92,194.81,0.063]
[1738894821063,25.41408373,194.88,194.81,0.063]
[1738894821266,25.41408373,194.87,194.81,0.063]
[1738894821577,25.41408373,194.88,194.81,25.47708373]
[1738894821754,25.41408373,194.87,194.81,0.063]
[1738894822282,25.41408373,194.87,194.81,5.1961]
[1738894823058,25.41408373,194.88,194.81,5.1961]
[1738894823285,6.1856,194.9,194.83,25.41408373]
[1738894823578,31.59968373,194.9,194.83,25.41408373]
[1738894823952,25.41408373,194.87,194.81,0.063]
[1738894824351,25.41408373,194.85,194.81,0.063]
[1738894824653,25.41408373,194.84,194.81,0.063]
[1738894825579,25.41408373,194.82,194.81,0.063]
[1738894825765,55.79055373,194.82,194.81,0.063]
[1738894826071,55.66506373,194.82,194.81,0.063]
[1738894826277,25.66506373,194.82,194.81,0.063]
[1738894826479,55.66506373,194.82,194.81,0.063]
[1738894826775,63.37555373,194.82,194.81,0.063]
[1738894826974,62.37555373,194.82,194.81,0.063]
[1738894827397,66.48185373,194.82,194.81,0.063]
[1738894828367,68.48185373,194.82,194.81,0.063]
[1738894828569,25.41408373,194.75,194.67,25.47708373]
[1738894828892,30.25098,194.78,194.67,25.47708373]
[1738894828893,25.41408373,194.73,194.67,5.1998]
[1738894829694,25.41408373,194.69,194.67,0.063]
[1738894830074,25.41408373,194.71,194.67,0.063]
[1738894830376,25.41408373,194.72,194.67,5.1998]
[1738894830688,25.41408373,194.69,194.67,0.063]
[1738894830897,25.41408373,194.68,194.67,0.063]
[1738894833389,25.41408373,194.69,194.67,0.063]
[1738894833583,25.41408373,194.7,194.67,0.063]
[1738894834479,25.41408373,194.72,194.67,0.063]
[1738894834691,1.5846,194.75,194.68,25.41408373]
[1738894834988,25.41408373,194.76,194.69,25.41408373]
[1738894835187,25.41408373,194.75,194.68,25.41408373]
[1738894835369,25.41408373,194.74,194.67,25.47708373]
[1738894836104,25.41408373,194.7,194.67,0.063]
[1738894836269,25.41408373,194.69,194.67,0.063]
[1738894837176,55.66506373,194.68,194.67,0.063]
[1738894838377,59.77436373,194.68,194.67,0.063]
[1738894840504,59.89985373,194.68,194.67,0.063]
[1738894840892,25.41408373,194.62,194.61,0.063]
[1738894842422,29.52458373,194.62,194.61,0.063]
[1738894843307,59.77556373,194.62,194.61,0.063]
[1738894843505,60.90105373,194.62,194.61,0.063]
[1738894845397,59.90105373,194.62,194.61,0.063]
[1738894845900,25.41408373,194.62,194.61,0.063]
[1738894846219,25.41408373,194.62,194.54,25.41408373]
[1738894846608,25.41408373,194.63,194.55,25.41408373]
[1738894846992,25.41408373,194.64,194.56,25.41408373]
[1738894847493,25.41408373,194.64,194.57,5.1395]
[1738894847692,25.41408373,194.63,194.57,5.1395]
[1738894848698,25.41408373,194.62,194.56,5.1398]
[1738894848896,25.41408373,194.61,194.53,25.41408373]
[1738894849118,25.41408373,194.6,194.53,25.41408373]
[1738894849315,25.41408373,194.6,194.55,20.0]
[1738894849623,25.41408373,194.61,194.55,20.0]
[1738894849920,25.41408373,194.63,194.56,25.41408373]
[1738894850225,25.41408373,194.65,194.58,25.41408373]
[1738894850396,25.41408373,194.65,194.57,25.41408373]
[1738894851100,25.41408373,194.65,194.58,5.1392]
[1738894851307,25.41408373,194.65,194.58,30.55328373]
[1738894851719,25.41408373,194.65,194.58,5.1392]
[1738894852021,25.41408373,194.64,194.58,5.1392]
[1738894852524,25.41408373,194.62,194.56,5.1398]
[1738894853508,25.41408373,194.62,194.55,20.0]
[1738894853814,25.41408373,194.61,194.55,20.0]
[1738894854204,25.41408373,194.62,194.55,20.0]
[1738894854521,25.41408373,194.63,194.56,25.41408373]
[1738894855104,25.41408373,194.62,194.55,30.55408373]
[1738894855307,25.41408373,194.63,194.56,25.41408373]
[1738894855498,25.41408373,194.63,194.57,5.1395]
[1738894856024,4.36068,194.66,194.54,25.41408373]
[1738894856025,0.25098,194.61,194.54,25.41408373]
[1738894856223,25.41408373,194.6,194.53,5.1405]
[1738894857225,29.52508373,194.6,194.53,5.1405]
[1738894857532,25.41408373,194.58,194.53,5.1405]
[1738894857833,25.41408373,194.64,194.56,25.41408373]
[1738894858204,31.68518373,194.68,194.6,25.41408373]
[1738894858404,31.68518373,194.68,194.57,0.77081567]
[1738894858405,25.41408373,194.68,194.62,25.41408373]
[1738894858600,25.41408373,194.7,194.62,25.41408373]
[1738894859226,25.41408373,194.7,194.63,5.1379]
[1738894861337,61.1,194.75,194.68,25.41408373]
[1738894861701,61.1,194.75,194.69,25.41408373]
[1738894861905,61.1,194.75,194.68,25.41408373]
[1738894863035,25.41408373,194.78,194.71,20.0]
[1738894863219,25.41408373,194.78,194.71,5.1358]
[1738894863910,25.41408373,194.78,194.71,30.54988373]
[1738894864311,25.41408373,194.8,194.73,25.41408373]
[1738894864525,25.44408373,194.81,194.73,25.41408373]
[1738894864746,0.03,194.81,194.78,20.0]
[1738894865130,0.03,194.81,194.8,25.41408373]
[1738894865654,0.03,194.81,194.76,25.41408373]
[1738894865953,0.03,194.81,194.79,20.0]
[1738894867156,0.03,194.81,194.78,25.41408373]
[1738894867327,0.03,194.82,194.8,45.41408373]
[1738894868055,0.03,194.82,194.79,5.1336]
[1738894869840,0.03,194.82,194.81,20.0]
[1738894870032,0.03,194.82,194.79,5.1336]
[1738894870033,0.03,194.82,194.8,25.41408373]
[1738894870355,0.03,194.82,194.77,25.41408373]
[1738894870529,0.03,194.82,194.75,0.76973405]
[1738894870530,0.03,194.82,194.76,30.54858373]
[1738894870731,0.03,194.82,194.79,45.41408373]
[1738894870949,0.03,194.82,194.79,20.0]
[1738894871453,0.03,194.82,194.79,25.1335]
[1738894871951,0.03,194.82,194.7,27.41408373]
[1738894871952,0.03,194.82,194.76,25.41408373]
[1738894872255,0.03,194.82,194.76,30.54858373]
[1738894872559,0.03,194.82,194.81,20.0]
[1738894872746,0.03,194.82,194.81,45.41408373]
[1738894872922,0.03,194.82,194.81,20.0]
[1738894873122,0.03,194.82,194.8,25.41408373]
[1738894873123,0.03,194.82,194.79,25.41408373]
[1738894873349,0.03,194.82,194.81,20.0]
[1738894874435,0.03,194.82,194.81,50.54728373]
[1738894874653,0.03,194.82,194.81,25.1332]
[1738894875661,0.03,194.82,194.81,20.0]
[1738894875830,0.03,194.82,194.8,25.41408373]
[1738894876157,0.03,194.82,194.81,20.0]
[1738894877757,0.03,194.82,194.81,5.1332]
[1738894878131,0.03,194.82,194.81,5.9029802]
[1738894878460,0.03,194.82,194.81,5.1332]
[1738894881031,0.0001,194.82,194.81,5.1332]
[1738894882232,25.41408373,194.92,194.81,18.54504853]
[1738894882432,11.7875,194.95,194.81,18.54504853]
[1738894882433,7.6839,194.95,194.88,25.41408373]
[1738894882932,7.6839,194.95,194.89,25.41408373]
[1738894883968,7.6839,194.95,194.9,5.1308]
[1738894884838,25.41408373,194.94,194.9,5.1308]
[1738894885858,7.6839,194.95,194.9,5.1308]
[1738894886058,7.6839,194.95,194.9,20.0]
[1738894886262,7.6839,194.95,194.88,5.1313]
[1738894886642,23.49709595,194.95,194.88,5.1313]
[1738894887153,7.6839,194.95,194.91,20.0]
[1738894887359,0.03,194.96,194.91,35.81319595]
[1738894887557,0.03,194.96,194.95,20.0]
[1738894887856,0.03,194.96,194.95,15.81319595]
[1738894888165,62.6697,195.06,194.95,21.71194373]
[1738894888342,62.6697,195.06,195.0,15.81319595]
[1738894888760,61.06,195.06,195.0,16.58227513]
[1738894888944,15.81319595,195.08,195.0,16.58227513]
[1738894889553,15.81319595,195.1,195.0,16.58227513]
[1738894889754,15.81319595,195.1,195.0,15.81319595]
[1738894890256,15.81319595,195.1,195.01,5.1279]
[1738894890761,25.26416921,195.09,195.02,25.26416921]
[1738894891351,25.26416921,195.09,195.03,5.1274]
[1738894892048,31.40706921,195.11,195.03,5.1274]
[1738894893065,25.26416921,195.09,195.02,25.26416921]
[1738894893376,25.26416921,195.07,195.01,5.1276]
[1738894894772,25.26416921,195.06,194.98,25.26416921]
[1738894895157,25.26416921,195.04,194.96,25.26416921]
[1738894895362,25.26416921,195.04,194.95,5.1295]
[1738894895363,25.26416921,195.04,194.97,25.26416921]
[1738894895682,25.26416921,195.05,194.98,25.26416921]
[1738894895887,25.26416921,195.04,194.97,25.26416921]
[1738894896385,25.26416921,195.04,194.98,5.1287]
[1738894897479,25.26416921,195.06,195.01,20.0]
[1738894897782,25.26416921,195.08,195.01,25.26416921]
[1738894898458,25.26416921,195.08,195.02,5.1276]
[1738894898849,25.26416921,195.07,195.02,5.1276]
[1738894899468,25.26416921,195.08,195.02,5.1276]
[1738894899668,25.26416921,195.07,195.0,5.1282]
[1738894901381,25.26416921,195.07,195.02,0.063]
[1738894901888,4.1005,195.1,195.02,0.063]
[1738894901889,25.26416921,195.05,195.02,0.063]
[1738894902218,25.26416921,195.03,195.02,0.063]
[1738894903009,27.26433921,195.03,195.02,0.063]
[1738894903206,33.52813921,195.03,195.02,0.063]
[1738894903414,0.25098,194.98,194.87,30.39556921]
[1738894903595,25.26416921,194.88,194.82,5.1957]
[1738894903792,6.51478,194.92,194.82,5.1957]
[1738894904184,25.26416921,194.88,194.82,5.1957]
[1738894904888,25.26416921,194.87,194.82,5.1957]
[1738894905410,25.26416921,194.88,194.82,5.1957]
[1738894905578,25.26416921,194.87,194.82,5.1957]
[1738894906013,25.26416921,194.86,194.82,0.063]
[1738894906311,0.25098,194.9,194.82,0.063]
[1738894906312,25.26416921,194.84,194.82,0.063]
[1738894906509,25.51514921,194.9,194.82,0.063]
[1738894906510,25.26416921,194.85,194.82,0.063]
[1738894906918,25.26416921,194.83,194.82,0.063]
[1738894907512,25.51514921,194.83,194.82,0.063]
[1738894907820,6.68458,194.81,194.79,0.063]
[1738894908117,82.28571842,194.8,194.79,0.063]
[1738894908700,99.92975695,194.8,194.79,0.063]
[1738894908902,0.25098,194.76,194.66,5.1369]
[1738894909215,25.26416921,194.72,194.66,5.1369]
[1738894909422,25.26416921,194.75,194.68,25.26416921]
[1738894909921,25.26416921,194.78,194.72,25.26416921]
[1738894910091,25.26416921,194.78,194.71,25.26416921]
[1738894910507,25.26416921,194.77,194.7,25.26416921]
[1738894911000,25.26416921,194.76,194.71,5.1358]
[1738894911199,0.25098,194.79,194.67,30.40096921]
[1738894911200,25.26416921,194.74,194.67,30.40096921]
[1738894911524,25.26416921,194.73,194.67,5.1368]
[1738894911715,25.26416921,194.72,194.67,5.1368]
[1738894912111,25.26416921,194.73,194.67,5.1368]
[1738894912315,25.26416921,194.76,194.69,25.26416921]
[1738894912513,25.26416921,194.74,194.67,30.40096921]
[1738894912699,25.26416921,194.73,194.67,5.1368]
[1738894913214,25.26416921,194.72,194.67,5.1368]
[1738894913408,25.26416921,194.71,194.64,25.26416921]
[1738894913606,2.0,194.79,194.61,0.83346622]
[1738894913607,30.0,194.79,194.69,25.26416921]
[1738894913912,25.26416921,194.77,194.7,25.26416921]
[1738894914308,25.26416921,194.78,194.7,25.26416921]
[1738894914508,25.26416921,194.77,194.7,25.26416921]
[1738894914700,25.26416921,194.75,194.68,45.26416921]
[1738894914898,0.12549,194.78,194.68,45.26416921]
[1738894914899,25.26416921,194.76,194.69,30.40046921]
[1738894915712,25.26416921,194.77,194.7,25.26416921]
[1738894916717,25.26416921,194.77,194.68,25.26416921]
[1738894916718,25.26416921,194.75,194.68,25.26416921]
[1738894916917,25.26416921,194.72,194.66,5.1371]
[1738894917096,25.26416921,194.73,194.66,30.40126921]
[1738894917924,25.26416921,194.74,194.66,30.40126921]
[1738894918103,25.26416921,194.75,194.69,20.0]
[1738894918305,25.26416921,194.76,194.69,20.0]
[1738894918907,25.26416921,194.77,194.7,25.26416921]
[1738894919112,25.26416921,194.79,194.72,25.26416921]
[1738894919518,36.4336,194.81,194.69,20.0]
[1738894919519,25.26416921,194.78,194.71,25.26416921]
[1738894920120,25.26416921,194.78,194.72,5.1355]
[1738894921033,25.26416921,194.77,194.72,5.1355]
[1738894921721,0.25098,194.8,194.72,5.1355]
[1738894921722,25.26416921,194.75,194.72,5.1355]
[1738894921922,25.26416921,194.76,194.72,5.1355]
[1738894922120,25.26416921,194.78,194.72,5.1355]
[1738894922317,25.26416921,194.79,194.72,30.39966921]
[1738894922628,0.25098,194.8,194.72,30.39966921]
[1738894922629,25.26416921,194.78,194.72,5.1355]
[1738894923304,25.26416921,194.82,194.75,25.26416921]
[1738894923726,25.26416921,194.83,194.76,30.39866921]
[1738894924030,25.78886354,195.04,194.76,30.39866921]
[1738894924031,1.548,194.89,194.82,25.26416921]
[1738894924324,0.12549,194.88,194.79,20.0]
[1738894924514,0.37647,194.88,194.79,20.0]
[1738894924702,0.37647,194.88,194.76,24.2433]
[1738894924903,6.3129,194.93,194.81,20.0]
[1738894925229,1.6145,194.95,194.86,25.26416921]
[1738894925532,25.26416921,194.97,194.86,25.26416921]
[1738894925741,25.26416921,194.97,194.85,1.0]
[1738894925742,7.94751012,194.98,194.92,5.1303]
[1738894925905,7.94751012,194.98,194.92,30.39446921]
[1738894926406,7.94751012,194.98,194.94,25.26416921]
[1738894926623,7.94751012,194.98,194.93,25.26416921]
[1738894927432,7.94751012,194.98,194.94,5.1297]
[1738894927934,61.0,195.0,194.94,5.1297]
[1738894929004,61.0,195.0,194.94,30.39386921]
[1738894929425,6.59669,195.05,194.97,25.26416921]
[1738894929426,25.26416921,195.04,194.97,25.26416921]
[1738894929728,26.80406921,195.06,194.98,25.26416921]
[1738894929912,26.80406921,195.06,195.01,20.0]
[1738894930112,25.29416921,195.07,195.01,20.0]
[1738894930639,0.03,195.07,195.04,25.26416921]
[1738894930926,0.03,195.07,195.01,0.76905421]
[1738894930927,0.03,195.07,195.01,25.26416921]
[1738894931103,25.26416921,195.04,194.97,25.26416921]
[1738894931303,25.26416921,195.04,195.0,20.0]
[1738894931539,25.26416921,195.04,195.01,5.1279]